bitfinex/quotes_SOLUSD_20250609
["timestamp","ask_amount","ask_price","bid_price","bid_amount"]
[1749510761404,20.00240333,159.9,159.89,6.97916262]
[1749510761724,20.00240333,159.9,159.89,6.97930484]
[1749510761918,20.00240333,159.9,159.89,6.97933332]
[1749510762290,20.00240333,159.9,159.89,6.97939027]
[1749510762485,6.25390869,159.9,159.89,6.97939027]
[1749510762815,6.25390869,159.9,159.89,6.9865347]
[1749510763020,6.25390869,159.9,159.89,7.00099345]
[1749510763418,6.2535176,159.91,159.89,7.00099345]
[1749510763606,6.2535176,159.91,159.9,7.00099345]
[1749510763797,6.2535176,159.91,159.9,4.66732897]
[1749510764124,6.2535176,159.91,159.9,7.00201947]
[1749510764297,6.2535176,159.91,159.9,2.33400649]
[1749510764490,6.2535176,159.91,159.9,7.00201947]
[1749510765622,6.2535176,159.91,159.9,2.33400649]
[1749510766415,6.2535176,159.91,159.88,24.04849464]
[1749510766719,6.2535176,159.91,159.89,2.33468852]
[1749510766914,6.2535176,159.91,159.88,24.04849464]
[1749510767222,6.2535176,159.91,159.89,2.33468852]
[1749510767416,6.2535176,159.91,159.88,24.04849464]
[1749510767590,6.2535176,159.91,159.89,2.33468777]
[1749510767792,6.2535176,159.91,159.9,2.33468777]
[1749510768010,6.2535176,159.91,159.9,2.33468702]
[1749510768613,6.2535176,159.91,159.9,2.33466797]
[1749510768808,6.2535176,159.91,159.88,10.3]
[1749510769004,6.2535176,159.91,159.89,2.33467381]
[1749510769205,6.2535176,159.91,159.88,10.3]
[1749510769410,6.2535176,159.91,159.89,2.33467306]
[1749510769600,6.2535176,159.91,159.88,10.3]
[1749510769801,6.2535176,159.91,159.89,2.33520742]
[1749510770008,6.2535176,159.91,159.88,10.3]
[1749510770216,6.2535176,159.91,159.89,2.33526733]
[1749510770415,6.2535176,159.91,159.9,2.33526732]
[1749510770600,6.2535176,159.91,159.9,2.33526234]
[1749510770794,6.2535176,159.91,159.9,2.33523374]
[1749510770993,6.2535176,159.91,159.9,2.33523452]
[1749510771194,6.2535176,159.91,159.9,2.33518615]
[1749510771492,6.2535176,159.91,159.88,10.3]
[1749510771693,6.2535176,159.91,159.89,2.33514954]
[1749510771892,6.2535176,159.91,159.88,24.04849464]
[1749510772109,6.2535176,159.91,159.89,2.33580096]
[1749510772415,6.2535176,159.91,159.88,24.04849464]
[1749510772816,20.00201224,159.91,159.88,10.3]
[1749510772996,20.00201224,159.91,159.89,2.33588077]
[1749510773196,20.00201224,159.91,159.9,2.33587645]
[1749510773403,20.00201224,159.91,159.9,2.33694267]
[1749510773605,20.00201224,159.91,159.88,10.3]
[1749510774207,20.00201224,159.91,159.89,2.33694417]
[1749510774406,20.00201224,159.91,159.88,10.3]
[1749510774813,20.00201224,159.91,159.89,2.33691557]
[1749510775015,20.00201224,159.91,159.88,10.3]
[1749510775418,20.00201224,159.91,159.89,2.33691122]
[1749510775604,6.25312656,159.92,159.9,2.33691047]
[1749510775809,39.74849464,159.91,159.88,10.3]
[1749510776109,13.74849464,159.9,159.88,10.3]
[1749510776317,13.74849464,159.9,159.89,2.33701604]
[1749510776505,13.74849464,159.9,159.88,10.3]
[1749510776704,13.74849464,159.9,159.89,2.3367323]
[1749510777029,6.25429983,159.89,159.88,10.3]
[1749510777323,20.00279447,159.89,159.88,12.63680826]
[1749510777501,20.00279447,159.89,159.88,12.63691289]
[1749510777706,26.0,159.86,159.83,10.28]
[1749510777905,13.74849464,159.85,159.84,2.33727178]
[1749510778411,39.74849464,159.86,159.83,10.28]
[1749510778620,39.74849464,159.86,159.84,2.33650796]
[1749510778808,39.74849464,159.86,159.83,10.28]
[1749510779010,46.00396817,159.86,159.84,2.3364775]
[1749510779214,46.00396817,159.86,159.85,2.33647674]
[1749510780337,46.00396817,159.86,159.85,2.33623484]
[1749510780537,46.00396817,159.86,159.85,2.33623918]
[1749510780752,46.00396817,159.86,159.83,10.28]
[1749510780909,20.00435951,159.85,159.84,2.33624068]
[1749510781825,20.00435951,159.85,159.84,2.3349208]
[1749510782207,20.00435951,159.85,159.84,2.33497799]
[1749510782407,20.00435951,159.85,159.84,2.33494939]
[1749510782610,20.00435951,159.85,159.84,2.33497799]
[1749510782829,20.00435951,159.85,159.83,10.28]
[1749510783008,20.00435951,159.85,159.84,2.33504026]
[1749510784135,20.00435951,159.85,159.84,2.33369315]
[1749510784637,20.00435951,159.85,159.84,2.33368881]
[1749510784807,20.00435951,159.85,159.81,13.74849464]
[1749510785011,21.89552705,159.85,159.82,10.28]
[1749510785237,13.74849464,159.83,159.79,10.28]
[1749510785551,6.25586487,159.85,159.81,13.74849464]
[1749510785841,20.00435951,159.85,159.81,13.74849464]
[1749510786051,6.25586487,159.85,159.81,13.74849464]
[1749510786215,6.25586487,159.85,159.82,13.74849464]
[1749510786415,20.00435951,159.85,159.81,13.74849464]
[1749510786612,20.00435951,159.85,159.8,0.28432314]
[1749510786830,20.00435951,159.85,159.81,13.74849464]
[1749510787435,13.74849464,159.82,159.79,10.28]
[1749510788631,6.25743069,159.81,159.79,10.28]
[1749510788935,20.00592533,159.81,159.79,10.28]
[1749510791515,13.74849464,159.8,159.79,10.28]
[1749510791723,20.00592533,159.81,159.79,10.28]
[1749510791917,13.74849464,159.83,159.79,10.28]
[1749510792128,20.00514232,159.83,159.79,24.02849464]
[1749510792441,20.00514232,159.83,159.79,10.28]
[1749510793754,20.00514232,159.83,159.79,24.02849464]
[1749510794853,13.74849464,159.82,159.79,10.28]
[1749510795225,20.00514232,159.83,159.79,24.02849464]
[1749510795650,13.74849464,159.88,159.82,13.74849464]
[1749510795953,13.74849464,159.86,159.82,13.74849464]
[1749510796439,21.89141855,159.88,159.81,13.74849464]
[1749510796440,20.00435951,159.85,159.81,13.74849464]
[1749510796744,13.74849464,159.84,159.8,13.74849464]
[1749510797118,13.74849464,159.84,159.79,10.28]
[1749510797324,13.74849464,159.84,159.8,13.74849464]
[1749510798436,6.25664768,159.83,159.8,13.74849464]
[1749510799121,6.25664768,159.83,159.79,10.28]
[1749510799323,6.25664768,159.83,159.79,24.02849464]
[1749510799719,6.25664768,159.83,159.79,10.28]
[1749510799941,6.25664768,159.83,159.79,24.02849464]
[1749510801220,20.00514232,159.83,159.79,24.02849464]
[1749510801647,20.00514232,159.83,159.79,10.28]
[1749510801850,13.74849464,159.82,159.79,10.28]
[1749510802725,13.74849464,159.81,159.79,10.28]
[1749510802937,6.25782227,159.8,159.79,10.28]
[1749510803242,6.25756375,159.81,159.79,10.28]
[1749510805532,13.74849464,159.8,159.79,10.28]
[1749510805839,13.74849464,159.8,159.74,10.28]
[1749510806159,13.74849464,159.75,159.74,10.28]
[1749510806324,13.74849464,159.76,159.74,10.28]
[1749510807439,6.2597809,159.75,159.74,10.28]
[1749510808235,6.25860558,159.78,159.74,10.28]
[1749510808440,13.74849464,159.76,159.74,10.28]
[1749510809131,13.74849464,159.75,159.74,10.28]
[1749510809743,20.00827554,159.75,159.74,10.28]
[1749510811251,6.2597809,159.75,159.74,10.28]
[1749510812048,20.00827554,159.75,159.74,10.28]
[1749510812848,15.64438952,159.81,159.75,18.64964886]
[1749510813151,13.74849464,159.8,159.76,13.74849464]
[1749510813345,6.25703916,159.82,159.77,13.74849464]
[1749510813646,13.74849464,159.81,159.77,13.74849464]
[1749510813835,6.25782227,159.8,159.77,13.74849464]
[1749510814038,20.00631691,159.8,159.76,13.74849464]
[1749510814233,6.25782227,159.8,159.77,13.74849464]
[1749510814725,6.25782227,159.8,159.75,18.64964886]
[1749510814925,6.25782227,159.8,159.77,13.74849464]
[1749510816530,6.25782227,159.8,159.76,13.74849464]
[1749510817952,6.25782227,159.8,159.75,18.64964886]
[1749510818133,20.00631691,159.8,159.76,13.74849464]
[1749510820336,20.00631691,159.8,159.75,18.64964886]
[1749510820651,20.00631691,159.8,159.76,13.74849464]
[1749510821752,6.25782227,159.8,159.78,13.74849464]
[1749510821957,6.25664768,159.83,159.79,13.74849464]
[1749510822152,20.00514232,159.83,159.79,13.74849464]
[1749510822645,13.74849464,159.82,159.78,13.74849464]
[1749510824058,6.25743069,159.81,159.78,13.74849464]
[1749510824258,1.5242,159.84,159.8,13.74849464]
[1749510824556,38.9,159.87,159.81,13.74849464]
[1749510824749,13.74849464,159.85,159.81,13.74849464]
[1749510825432,6.25625625,159.84,159.81,13.74849464]
[1749510825955,6.25580829,159.86,159.83,13.74849464]
[1749510827759,6.25508225,159.87,159.83,13.74849464]
[1749510827968,6.25508225,159.87,159.84,13.74849464]
[1749510829177,6.25508225,159.87,159.85,2.34586725]
[1749510829339,6.25508225,159.87,159.86,2.34586725]
[1749510829774,6.25508225,159.87,159.86,2.33680142]
[1749510829963,20.00357689,159.87,159.86,2.33677101]
[1749510830259,20.00357689,159.87,159.86,2.33678055]
[1749510830645,20.00357689,159.87,159.83,13.74849464]
[1749510830842,20.00357689,159.87,159.84,2.33678055]
[1749510831038,20.00357689,159.87,159.85,2.33678055]
[1749510831243,20.00357689,159.87,159.86,2.33678055]
[1749510831450,20.00357689,159.87,159.83,13.74849464]
[1749510831664,20.00357689,159.87,159.84,2.33679753]
[1749510831852,20.00357689,159.87,159.83,13.74849464]
[1749510832259,13.74849464,159.86,159.84,2.33679753]
[1749510832452,13.74849464,159.86,159.85,2.33679753]
[1749510833464,20.00396817,159.86,159.85,2.33679753]
[1749510833764,20.00396817,159.86,159.85,2.33860098]
[1749510834651,20.00396817,159.86,159.85,2.33854371]
[1749510834846,20.00396817,159.86,159.83,13.74849464]
[1749510835168,20.00396817,159.86,159.84,2.33856657]
[1749510835365,20.00396817,159.86,159.85,2.3385679]
[1749510835543,20.00396817,159.86,159.83,13.74849464]
[1749510835743,20.00396817,159.86,159.84,2.33856865]
[1749510835965,20.00396817,159.86,159.83,13.74849464]
[1749510836338,20.00396817,159.86,159.84,2.33853463]
[1749510836552,20.00396817,159.86,159.83,13.74849464]
[1749510836945,20.00396817,159.86,159.84,2.33853596]
[1749510837146,6.25547353,159.86,159.84,13.74849464]
[1749510837470,6.25547353,159.86,159.85,2.33844751]
[1749510837657,6.25547353,159.86,159.84,13.74849464]
[1749510838244,21.89166508,159.88,159.84,13.74849464]
[1749510838658,21.89166508,159.88,159.85,2.33809622]
[1749510838858,6.25469101,159.88,159.86,2.3380643]
[1749510839058,6.25469101,159.88,159.86,13.74849464]
[1749510839267,6.25469101,159.88,159.87,2.33803944]
[1749510839446,6.25469101,159.88,159.86,13.74849464]
[1749510839646,6.25469101,159.88,159.87,2.33803869]
[1749510839852,6.25429983,159.89,159.86,13.74849464]
[1749510840053,6.25429983,159.89,159.87,2.3380248]
[1749510840252,6.25429983,159.89,159.88,2.3380248]
[1749510840451,6.25429983,159.89,159.88,2.34256839]
[1749510840648,6.25429983,159.89,159.86,24.00849464]
[1749510840864,6.25367555,159.91,159.88,13.74849464]
[1749510841353,6.25367555,159.91,159.89,2.34235906]
[1749510841545,6.25367555,159.91,159.88,13.74849464]
[1749510842354,6.25367555,159.91,159.89,2.34229488]
[1749510842560,6.25367555,159.91,159.88,13.74849464]
[1749510842748,13.74849464,159.91,159.87,32.3981435]
[1749510842954,13.74849464,159.91,159.88,2.3423191]
[1749510843159,13.74849464,159.91,159.89,2.3423191]
[1749510843466,13.74849464,159.91,159.9,2.34227937]
[1749510843639,13.74849464,159.91,159.9,2.34227426]
[1749510843848,20.00201224,159.91,159.9,2.34210737]
[1749510844075,20.00201224,159.91,159.87,32.3981435]
[1749510844477,20.00201224,159.91,159.88,2.34207037]
[1749510844816,20.00201224,159.91,159.89,2.34206962]
[1749510844944,20.00201224,159.91,159.87,32.3981435]
[1749510844945,20.00201224,159.91,159.9,2.34209714]
[1749510845149,20.00201224,159.91,159.9,2.3419752]
[1749510845364,6.2535176,159.91,159.88,13.74849464]
[1749510845880,6.25325733,159.92,159.89,16.09042129]
[1749510846062,6.25325733,159.92,159.9,2.34189903]
[1749510846263,20.00175197,159.92,159.91,2.34189828]
[1749510846477,20.00175197,159.92,159.91,2.34187842]
[1749510847350,20.00175197,159.92,159.91,2.34189254]
[1749510847544,20.00175197,159.92,159.88,13.74849464]
[1749510847769,20.00175197,159.92,159.89,2.34188089]
[1749510847977,6.25325733,159.92,159.9,2.34188014]
[1749510848184,6.25325733,159.92,159.91,2.34181265]
[1749510848480,6.25325733,159.92,159.91,2.34178323]
[1749510849267,6.25325733,159.92,159.91,2.33011871]
[1749510849468,6.25325733,159.92,159.91,2.33007775]
[1749510849677,6.25325733,159.92,159.91,2.33007731]
[1749510850175,6.25325733,159.92,159.91,2.330073]
[1749510851091,6.25325733,159.92,159.91,2.33005734]
[1749510851285,35.63456837,159.92,159.87,18.64964886]
[1749510851589,13.74849464,159.88,159.86,10.26]
[1749510851804,13.74849464,159.87,159.86,10.26]
[1749510851976,13.74849464,159.87,159.86,12.59053447]
[1749510852588,20.00357689,159.87,159.86,12.59053447]
[1749510852790,20.00357689,159.87,159.86,10.26]
[1749510853181,20.00357689,159.87,159.86,12.59210937]
[1749510853380,20.00357689,159.87,159.86,12.59210953]
[1749510853585,20.00357689,159.87,159.86,12.59210937]
[1749510854696,20.00357689,159.87,159.86,12.5919962]
[1749510856489,20.00357689,159.87,159.86,10.26]
[1749510856894,20.00357689,159.87,159.86,12.59328094]
[1749510857497,20.00357689,159.87,159.86,12.59429769]
[1749510857886,20.00357689,159.87,159.86,10.26]
[1749510858070,20.00357689,159.87,159.86,12.59429769]
[1749510858276,20.00357689,159.87,159.86,10.26]
[1749510858495,6.25508225,159.87,159.86,12.59429769]
[1749510858692,6.25508225,159.87,159.86,12.59424827]
[1749510858989,6.25508225,159.87,159.86,12.59424843]
[1749510859815,6.25508225,159.87,159.86,10.26]
[1749510860095,20.00357689,159.87,159.86,12.59501537]
[1749510860396,20.00357689,159.87,159.86,12.59505364]
[1749510861471,20.00357689,159.87,159.86,10.26]
[1749510862085,20.00357689,159.87,159.86,12.59532773]
[1749510862289,20.00357689,159.87,159.86,12.59539445]
[1749510862893,20.00357689,159.87,159.86,12.59565571]
[1749510863085,20.00357689,159.87,159.86,10.26]
[1749510863290,20.00357689,159.87,159.86,12.59561758]
[1749510863795,20.00357689,159.87,159.86,10.26]
[1749510864097,20.00357689,159.87,159.86,12.59565555]
[1749510865199,20.00357689,159.87,159.86,10.26]
[1749510865421,20.00357689,159.87,159.86,12.59598486]
[1749510866484,20.00357689,159.87,159.86,10.26]
[1749510866685,20.00357689,159.87,159.86,12.59607271]
[1749510867396,20.00357689,159.87,159.86,10.26]
[1749510867817,20.00357689,159.87,159.86,12.59613106]
[1749510867996,20.00357689,159.87,159.86,12.5961346]
[1749510868593,20.00357689,159.87,159.86,10.26]
[1749510869324,20.00357689,159.87,159.86,12.59609632]
[1749510870114,20.00357689,159.87,159.86,12.59611546]
[1749510870286,35.64128252,159.87,159.81,10.24]
[1749510870491,13.74849464,159.84,159.81,10.24]
[1749510870912,13.74849464,159.84,159.82,2.33612147]
[1749510871222,20.00475089,159.84,159.83,2.33612072]
[1749510871987,20.00475089,159.84,159.83,2.33608168]
[1749510872400,20.00475089,159.84,159.81,10.24]
[1749510872602,20.00475089,159.84,159.82,2.33613911]
[1749510872794,20.00475089,159.84,159.83,2.33613911]
[1749510873784,20.00475089,159.84,159.81,10.24]
[1749510874118,20.00475089,159.84,159.82,2.3360317]
[1749510874419,20.00475089,159.84,159.81,10.24]
[1749510874910,20.00475089,159.84,159.82,2.33612704]
[1749510875219,21.89278788,159.87,159.83,2.33612704]
[1749510875399,13.74849464,159.85,159.84,2.33612704]
[1749510875903,21.89278788,159.87,159.84,2.33602974]
[1749510875904,13.74849464,159.86,159.84,2.33602974]
[1749510876112,13.74849464,159.86,159.85,2.33600207]
[1749510876420,13.74849464,159.86,159.85,2.33597477]
[1749510877005,13.74849464,159.86,159.85,2.33597045]
[1749510877318,6.25547353,159.86,159.85,2.33597045]
[1749510877527,20.00396817,159.86,159.85,2.33603718]
[1749510878498,20.00396817,159.86,159.81,10.24]
[1749510878705,6.25625625,159.84,159.82,2.3356672]
[1749510878907,6.25625625,159.84,159.83,2.3356672]
[1749510879310,6.25625625,159.84,159.81,23.98849464]
[1749510879795,6.25625625,159.84,159.82,2.33569567]
[1749510879996,20.00475089,159.84,159.83,2.33569492]
[1749510880516,20.00475089,159.84,159.83,2.33534845]
[1749510880721,20.00475089,159.84,159.79,23.98849464]
[1749510881019,13.74849464,159.83,159.79,23.98849464]
[1749510881196,13.74849464,159.83,159.8,2.33536801]
[1749510881513,13.74849464,159.83,159.81,2.33536726]
[1749510881710,13.74849464,159.83,159.82,2.33536651]
[1749510882018,6.25703916,159.82,159.79,23.98849464]
[1749510882343,6.25703916,159.82,159.8,2.33536443]
[1749510882519,6.25703916,159.82,159.81,2.33474618]
[1749510882705,6.25703916,159.82,159.81,2.33474543]
[1749510882897,6.25703916,159.82,159.79,23.98849464]
[1749510883098,6.25703916,159.82,159.8,2.33425084]
[1749510883306,6.25703916,159.82,159.81,2.33428835]
[1749510883517,6.25703916,159.82,159.79,23.98849464]
[1749510883815,6.25703916,159.82,159.8,2.33423022]
[1749510884012,6.25703916,159.82,159.81,2.33423022]
[1749510884210,6.25703916,159.82,159.81,2.33427623]
[1749510884420,6.25703916,159.82,159.79,23.98849464]
[1749510884724,6.25703916,159.82,159.8,2.33427626]
[1749510884922,6.25703916,159.82,159.81,2.33423511]
[1749510885104,6.25703916,159.82,159.79,23.98849464]
[1749510885308,6.25703916,159.82,159.8,2.33426041]
[1749510885509,6.25703916,159.82,159.81,2.33426041]
[1749510886120,6.25703916,159.82,159.79,23.98849464]
[1749510886508,6.25703916,159.82,159.8,2.33429757]
[1749510886712,13.74849464,159.83,159.81,2.33429757]
[1749510886925,13.74849464,159.83,159.82,2.3342188]
[1749510887306,15.63969157,159.85,159.82,2.3342188]
[1749510887507,15.63969157,159.85,159.83,2.3342188]
[1749510887808,13.74849464,159.84,159.79,23.98849464]
[1749510888009,6.25703916,159.82,159.8,2.33386376]
[1749510888224,6.25703916,159.82,159.81,2.33385869]
[1749510888613,6.25703916,159.82,159.81,2.33385794]
[1749510889230,8.82056012,159.83,159.81,2.33385794]
[1749510889530,8.82056012,159.83,159.82,2.33371709]
[1749510889701,8.82056012,159.83,159.79,19.06056012]
[1749510889908,8.82056012,159.83,159.8,2.33371859]
[1749510890218,6.25703916,159.82,159.79,19.06056012]
[1749510890610,6.25703916,159.82,159.8,2.33371934]
[1749510890816,6.25703916,159.82,159.81,2.33371934]
[1749510891015,6.25624853,159.85,159.81,11.15416246]
[1749510891220,15.07680865,159.85,159.82,2.33360234]
[1749510891421,15.07680865,159.85,159.8,27.47020898]
[1749510891620,15.07680865,159.85,159.81,2.3336089]
[1749510891819,15.07680865,159.85,159.82,2.33360551]
[1749510892021,15.07680865,159.85,159.83,2.33360476]
[1749510892228,15.07680865,159.85,159.8,27.47020898]
[1749510892421,15.07680865,159.85,159.81,2.33360401]
[1749510892617,15.07680865,159.85,159.82,2.33360401]
[1749510892937,15.07680865,159.85,159.83,2.33360401]
[1749510893131,15.07680865,159.85,159.84,2.33360401]
[1749510893326,15.07680865,159.85,159.84,2.33361696]
[1749510893531,15.07680865,159.85,159.81,19.06056012]
[1749510893715,15.07680865,159.85,159.82,2.33576325]
[1749510893917,15.07680865,159.85,159.83,2.33576325]
[1749510894117,15.07680865,159.85,159.81,19.06056012]
[1749510894333,15.07680865,159.85,159.82,2.33571633]
[1749510894619,15.07680865,159.85,159.83,2.33571633]
[1749510894827,15.07680865,159.85,159.84,2.33571633]
[1749510895133,6.25624853,159.85,159.84,2.33598594]
[1749510895436,6.25624853,159.85,159.84,2.33589536]
[1749510895637,6.25624853,159.85,159.82,8.82056012]
[1749510895843,6.25624853,159.85,159.83,2.33589536]
[1749510896018,6.25624853,159.85,159.84,2.33589536]
[1749510896842,15.07680865,159.85,159.84,2.33594322]
[1749510897022,15.07680865,159.85,159.84,2.33664145]
[1749510897219,15.07680865,159.85,159.81,19.06056012]
[1749510897645,15.07680865,159.85,159.82,2.33661517]
[1749510897939,15.07680865,159.85,159.83,2.33661517]
[1749510898154,15.07680865,159.85,159.84,2.33661517]
[1749510898517,15.07680865,159.85,159.84,2.33699977]
[1749510898719,15.07680865,159.85,159.84,2.33699959]
[1749510898928,15.07680865,159.85,159.84,2.33699947]
[1749510899217,15.07680865,159.85,159.84,2.33701507]
[1749510900145,15.07680865,159.85,159.81,19.06056012]
[1749510900351,15.07680865,159.85,159.82,2.33769597]
[1749510900521,15.07680865,159.85,159.81,19.06056012]
[1749510900722,15.07680865,159.85,159.82,2.33773428]
[1749510900938,15.07680865,159.85,159.83,2.3376853]
[1749510901241,15.07680865,159.85,159.84,2.3376853]
[1749510901742,6.25624853,159.85,159.84,2.33800767]
[1749510902048,8.82056012,159.87,159.84,2.33786022]
[1749510902249,8.82056012,159.86,159.85,2.33880931]
[1749510902427,8.82056012,159.86,159.83,18.64964886]
[1749510902624,8.82056012,159.86,159.84,2.33883806]
[1749510902944,8.82056012,159.85,159.8,117.37020898]
[1749510903137,8.82056012,159.82,159.81,12.57898056]
[1749510903450,8.82056012,159.82,159.81,12.57915371]
[1749510903944,8.82056012,159.82,159.81,12.57868797]
[1749510904247,15.07759928,159.82,159.81,12.58064842]
[1749510904461,15.07759928,159.82,159.81,10.24]
[1749510904756,6.25703916,159.82,159.81,12.58067363]
[1749510905124,6.25703916,159.82,159.81,12.58053194]
[1749510905323,6.25671646,159.83,159.81,12.58053194]
[1749510905647,15.07727658,159.83,159.82,2.34053119]
[1749510905819,15.07727658,159.83,159.82,2.3405261]
[1749510906028,15.07727658,159.83,159.82,2.34053044]
[1749510907240,15.07727658,159.83,159.82,2.34053309]
[1749510907437,15.07727658,159.83,159.81,10.24]
[1749510907722,15.07727658,159.83,159.82,2.34086756]
[1749510908029,15.07727658,159.83,159.82,2.34087639]
[1749510908346,15.07727658,159.83,159.82,2.34084763]
[1749510908652,6.25671646,159.83,159.82,2.34084763]
[1749510908828,6.25671646,159.83,159.82,2.34092312]
[1749510908829,15.07727658,159.83,159.82,2.34092312]
[1749510909026,6.25671646,159.83,159.81,10.24]
[1749510909234,15.07727658,159.83,159.82,2.34092312]
[1749510909425,15.07727658,159.83,159.81,10.24]
[1749510909626,15.07727658,159.83,159.82,2.34166195]
[1749510909849,15.07727658,159.83,159.81,10.24]
[1749510910050,6.25625625,159.84,159.82,2.34167079]
[1749510910367,6.25625625,159.84,159.83,2.34167079]
[1749510910540,21.89689689,159.84,159.83,2.34173643]
[1749510911035,21.89689689,159.84,159.83,2.34174602]
[1749510911234,30.71745701,159.84,159.83,2.34177479]
[1749510912447,30.71745701,159.84,159.83,2.34167477]
[1749510913244,35.68165846,159.84,159.83,2.34167477]
[1749510913949,35.68165846,159.84,159.83,2.34160763]
[1749510914326,35.68165846,159.84,159.83,2.3416364]
[1749510914948,49.46642003,159.84,159.83,2.3416364]
[1749510915149,49.46642003,159.84,159.81,10.24]
[1749510915321,35.68165846,159.84,159.82,2.34071037]
[1749510915522,13.78476157,159.83,159.81,10.24]
[1749510915727,13.78476157,159.82,159.81,10.24]
[1749510916239,13.78476157,159.82,159.75,64.28480261]
[1749510916240,35.68439865,159.82,159.76,10.24]
[1749510916437,21.89963708,159.82,159.76,28.88964886]
[1749510916637,13.78476157,159.8,159.77,18.79181043]
[1749510916840,13.78476157,159.86,159.8,18.79181043]
[1749510917044,13.78476157,159.86,159.82,13.78476157]
[1749510917247,13.78476157,159.86,159.82,24.02476157]
[1749510917749,13.78476157,159.83,159.82,10.24]
[1749510918448,20.04140925,159.83,159.82,10.24]
[1749510918631,6.25664768,159.83,159.82,10.24]
[1749510924067,6.25586487,159.85,159.82,10.24]
[1749510924750,20.04062644,159.85,159.82,10.24]
[1749510926558,6.25586487,159.85,159.82,10.24]
[1749510926762,6.25586487,159.85,159.82,24.02476157]
[1749510927640,6.25586487,159.85,159.82,10.24]
[1749510927960,13.78476157,159.84,159.82,10.24]
[1749510928341,20.04062644,159.85,159.82,10.24]
[1749510928543,6.25586487,159.85,159.82,24.02476157]
[1749510928868,6.25586487,159.85,159.82,10.24]
[1749510929035,6.25586487,159.85,159.82,24.02476157]
[1749510929431,20.04062644,159.85,159.82,10.24]
[1749510929642,13.78476157,159.83,159.82,10.24]
[1749510929947,20.04140925,159.83,159.78,10.22]
[1749510930134,13.78476157,159.8,159.78,10.22]
[1749510931258,13.78476157,159.79,159.78,10.22]
[1749510931767,6.25860558,159.78,159.74,29.01181043]
[1749510931946,13.78476157,159.77,159.74,29.01181043]
[1749510932346,13.78476157,159.76,159.74,10.22]
[1749510932737,13.78476157,159.77,159.74,10.22]
[1749510934057,6.25938908,159.76,159.74,10.22]
[1749510937566,6.25938908,159.76,159.74,24.00476157]
[1749510937765,13.78476157,159.79,159.75,13.78476157]
[1749510938067,13.78476157,159.77,159.74,10.22]
[1749510938571,13.78476157,159.75,159.74,10.22]
[1749510939371,20.04454247,159.75,159.74,10.22]
[1749510941260,6.2597809,159.75,159.74,10.22]
[1749510942072,20.04454247,159.75,159.74,10.22]
[1749510943254,6.2597809,159.75,159.74,10.22]
[1749510943871,6.2597809,159.75,159.74,24.00476157]
[1749510944254,6.2597809,159.75,159.74,10.22]
[1749510944883,1.6277,159.81,159.74,24.00476157]
[1749510944884,13.78476157,159.79,159.74,24.00476157]
[1749510945081,13.78476157,159.79,159.75,13.78476157]
[1749510945278,15.6453338,159.8,159.75,13.78476157]
[1749510945479,13.78476157,159.79,159.75,13.78476157]
[1749510945791,20.04297547,159.79,159.75,13.78476157]
[1749510945951,13.78476157,159.78,159.74,10.22]
[1749510946459,13.78476157,159.77,159.74,10.22]
[1749510946867,6.25938908,159.76,159.74,10.22]
[1749510950372,21.90661626,159.77,159.74,10.22]
[1749510950578,6.2589973,159.77,159.74,24.00476157]
[1749510950778,6.2589973,159.77,159.75,13.78476157]
[1749510951175,20.04375887,159.77,159.74,10.22]
[1749510951477,6.2589973,159.77,159.74,24.00476157]
[1749510954587,6.2589973,159.77,159.74,10.22]
[1749510954792,6.2589973,159.77,159.74,24.00476157]
[1749510955888,6.2589973,159.77,159.74,10.22]
[1749510957985,13.78476157,159.75,159.74,10.22]
[1749510958190,13.78476157,159.76,159.74,10.22]
[1749510958687,6.2597809,159.75,159.74,10.22]
[1749510962574,21.90237796,159.8,159.74,10.22]
[1749510962775,13.78476157,159.76,159.74,10.22]
[1749510963175,13.78476157,159.75,159.74,10.22]
[1749510964695,20.04454247,159.75,159.74,10.22]
[1749510965290,35.69399473,159.75,159.7,24.00476157]
[1749510965486,13.78476157,159.74,159.7,24.00476157]
[1749510965795,13.78476157,159.73,159.7,10.22]
[1749510966195,6.26095667,159.72,159.7,10.22]
[1749510966586,6.26095667,159.72,159.7,24.00476157]
[1749510967697,6.26095667,159.72,159.7,10.22]
[1749510968291,6.26095667,159.72,159.7,24.00476157]
[1749510969102,6.2605647,159.73,159.71,13.78476157]
[1749510969492,6.2605647,159.73,159.7,24.00476157]
[1749510971105,6.2605647,159.73,159.71,13.78476157]
[1749510971604,6.2605647,159.73,159.7,10.22]
[1749510971800,6.2605647,159.73,159.7,24.00476157]
[1749510972588,6.2605647,159.73,159.7,10.22]
[1749510972782,6.2605647,159.73,159.7,24.00476157]
[1749510976995,6.2605647,159.73,159.71,13.78476157]
[1749510978410,44.9267,159.77,159.7,10.22]